bitfinex/quotes_BTCUSD_20251201
["timestamp","ask_amount","ask_price","bid_price","bid_amount"]
[1764615371943,0.03017884,85116.0,85102.0,0.0117506]
[1764615372144,0.01175005,85106.0,85100.0,0.23501494]
[1764615372345,0.01174963,85109.0,85102.0,0.24676252]
[1764615372523,0.01174991,85107.0,85102.0,0.0117506]
[1764615372822,0.01174977,85108.0,85102.0,0.0117506]
[1764615373027,0.01174977,85108.0,85103.0,0.01175046]
[1764615373663,0.01175019,85105.0,85096.0,0.24677739]
[1764615373865,0.01175032,85104.0,85102.0,0.003]
[1764615374062,0.01175032,85104.0,85096.0,0.24677739]
[1764615374063,0.23500934,85103.0,85097.0,0.01175129]
[1764615374193,0.01175046,85103.0,85098.0,0.01175115]
[1764615374599,0.2467627,85102.0,85096.0,0.01175143]
[1764615374798,0.2467627,85102.0,85096.0,0.12915884]
[1764615374996,0.24675487,85105.0,85102.0,0.004]
[1764615375280,0.01175005,85106.0,85102.0,0.004]
[1764615375491,0.01174894,85114.0,85102.0,0.004]
[1764615375715,0.24674537,85108.0,85102.0,0.0157506]
[1764615375916,0.24675452,85105.0,85102.0,0.004]
[1764615376048,0.23500659,85104.0,85102.0,0.004]
[1764615376433,0.23502591,85097.0,85096.0,0.001]
[1764615376651,0.23502591,85097.0,85096.0,0.00111641]
[1764615377438,0.23502591,85097.0,85096.0,0.00011641]
[1764615377625,0.23602591,85097.0,85096.0,0.00011641]
[1764615377824,0.001,85097.0,85096.0,0.00011641]
[1764615378027,0.23502324,85098.0,85096.0,0.00011641]
[1764615378707,0.23502591,85097.0,85096.0,0.00011641]
[1764615383395,0.01174936,85111.0,85102.0,0.0117506]
[1764615383595,0.01174922,85112.0,85105.0,0.23500176]
[1764615383796,0.01174936,85111.0,85105.0,0.23500176]
[1764615383987,0.01174894,85114.0,85106.0,0.01175005]
[1764615384185,0.0117495,85110.0,85105.0,0.01175019]
[1764615384406,0.01174963,85109.0,85103.0,0.01175046]
[1764615384609,0.01174977,85108.0,85103.0,0.01175046]
[1764615384805,0.24673981,85110.0,85103.0,0.24675954]
[1764615385007,0.24674263,85109.0,85103.0,0.24675954]
[1764615385350,0.24874167,85111.0,85104.0,0.24675661]
[1764615385498,0.23499062,85110.0,85104.0,0.01175032]
[1764615385837,0.23499062,85110.0,85106.0,0.001]
[1764615385838,0.0117495,85110.0,85106.0,0.001]
[1764615386193,0.24673869,85112.0,85107.0,0.01174991]
[1764615386393,0.24673184,85113.0,85105.0,0.01175019]
[1764615386606,0.24674296,85109.0,85103.0,0.23500911]
[1764615386849,0.01174991,85107.0,85101.0,0.01175074]
[1764615387100,0.24674582,85108.0,85106.0,0.001]
[1764615387276,0.23499829,85107.0,85100.0,0.01175088]
[1764615387452,0.01174977,85108.0,85106.0,0.1474]
[1764615387793,0.23499829,85107.0,85106.0,0.1474]
[1764615388171,0.0117495,85110.0,85106.0,0.1474]
[1764615388499,0.01843177,85116.0,85106.0,0.18691665]
[1764615388674,0.24673093,85113.0,85106.0,0.18691665]
[1764615388842,0.01174936,85111.0,85106.0,0.18691665]
[1764615389050,0.24673817,85111.0,85106.0,0.18691665]
[1764615389271,0.23499829,85107.0,85106.0,0.1484]
[1764615389445,0.01174963,85109.0,85106.0,0.1474]
[1764615389446,0.24674268,85109.0,85106.0,0.1474]
[1764615389651,0.323,85127.0,85106.0,0.1474]
[1764615389953,0.0117495,85110.0,85106.0,0.1474]
[1764615390155,0.24673872,85111.0,85106.0,0.1474]
[1764615390364,0.24673872,85111.0,85106.0,0.1484]
[1764615390566,0.24673872,85111.0,85106.0,0.1474]
[1764615390785,0.0117495,85110.0,85106.0,0.1474]
[1764615391197,0.24673872,85111.0,85106.0,0.1474]
[1764615391610,0.01999998,85140.0,85115.0,0.2349762]
[1764615391803,0.41214398,85150.0,85130.0,0.01174674]
[1764615391804,0.0117448,85144.0,85130.0,0.01174674]
[1764615392005,0.24664405,85143.0,85133.0,0.01174632]
[1764615392288,0.01842876,85148.0,85142.0,0.01174508]
[1764615392514,0.0004,85150.0,85144.0,0.23489617]
[1764615392917,0.00037689,85145.0,85144.0,0.23489617]
[1764615393110,0.00037689,85145.0,85144.0,0.35230358]
[1764615393455,0.00037689,85145.0,85144.0,0.36371425]
[1764615393734,0.00037689,85145.0,85144.0,0.47418079]
[1764615394057,0.00037689,85145.0,85144.0,0.47518079]
[1764615394258,0.00037689,85145.0,85144.0,0.47418079]
[1764615394838,0.00037689,85145.0,85144.0,0.85970378]
[1764615395509,0.00037689,85145.0,85144.0,0.86893311]
[1764615395840,0.00037689,85145.0,85144.0,0.88034378]
[1764615396055,0.00037689,85145.0,85144.0,0.86893311]
[1764615396632,0.00037689,85145.0,85144.0,0.88034378]
[1764615397272,0.00037689,85145.0,85144.0,0.76987724]
[1764615399955,0.00037689,85145.0,85144.0,0.002]
[1764615400806,0.00037689,85145.0,85140.0,0.01174536]
[1764615401106,0.23489976,85143.0,85134.0,0.03038618]
[1764615401303,0.2466472,85142.0,85136.0,0.01174591]
[1764615401467,0.01212156,85145.0,85136.0,0.01174591]
[1764615401468,0.0117448,85144.0,85138.0,0.01174563]
[1764615401672,0.00037689,85145.0,85141.0,0.01174522]
[1764615401888,0.01212156,85145.0,85139.0,0.24665401]
[1764615402060,0.24701718,85145.0,85138.0,0.24665793]
[1764615402323,0.00037689,85145.0,85141.0,0.01174522]
[1764615402524,0.00037689,85145.0,85144.0,0.001]
[1764615402724,0.00037689,85145.0,85142.0,0.01174508]
[1764615403031,0.00037689,85145.0,85141.0,0.01174522]
[1764615403241,0.00037689,85145.0,85140.0,0.23490646]
[1764615403416,0.0117448,85144.0,85138.0,0.01174563]
[1764615403620,0.01174494,85143.0,85135.0,0.24666591]
[1764615403818,0.01174549,85139.0,85129.0,0.12915428]
[1764615404077,0.24665315,85140.0,85131.0,0.0117466]
[1764615404269,0.00037689,85145.0,85136.0,0.01174591]
[1764615404576,0.01212156,85145.0,85137.0,0.23491515]
[1764615404897,0.01174536,85140.0,85132.0,0.01174646]
[1764615405389,0.24665299,85140.0,85134.0,0.01174618]
[1764615405595,0.01174591,85136.0,85129.0,0.13604741]
[1764615405800,0.24666415,85136.0,85135.0,0.002]
[1764615406013,0.01174549,85139.0,85135.0,0.002]
[1764615406218,0.00037689,85145.0,85138.0,0.23491265]
[1764615406419,0.00037689,85145.0,85140.0,0.24665217]
[1764615406717,0.00037689,85145.0,85142.0,0.01174508]
[1764615406945,0.0003005,85145.0,85142.0,0.01174508]
[1764615407096,0.0003005,85145.0,85144.0,0.23489617]
[1764615407699,0.0003005,85145.0,85144.0,0.48189021]
[1764615407901,0.0003005,85145.0,85144.0,0.5444132]
[1764615408083,0.0003005,85145.0,85144.0,0.8674132]
[1764615409494,0.0003005,85145.0,85144.0,0.8694132]
[1764615410990,0.0004,85180.0,85169.0,0.23482722]
[1764615411339,0.0004,85180.0,85169.0,0.39293739]
[1764615411572,0.0004,85180.0,85169.0,0.24623789]
[1764615412501,0.0024,85170.0,85169.0,0.44504971]
[1764615412703,0.0004,85170.0,85169.0,0.45646038]
[1764615413135,0.0004,85170.0,85169.0,0.46046038]
[1764615413343,0.0004,85170.0,85169.0,0.55414621]
[1764615413736,0.0004,85170.0,85169.0,0.55314621]
[1764615413951,0.0004,85170.0,85169.0,0.71803604]
[1764615414152,0.0004,85170.0,85169.0,0.73515261]
[1764615415318,0.0004,85170.0,85169.0,0.75379261]
[1764615415728,0.0004,85170.0,85169.0,0.73515261]
[1764615416153,0.0004,85170.0,85169.0,0.75379261]
[1764615416358,0.0004,85170.0,85169.0,0.74979261]
[1764615416606,0.0012135,85170.0,85169.0,0.74979261]
[1764615416845,0.0012135,85170.0,85169.0,0.75179261]
[1764615417049,0.0012135,85170.0,85169.0,0.75279261]
[1764615417542,0.0012135,85170.0,85169.0,0.75179261]
[1764615417745,0.0012135,85170.0,85169.0,0.74879261]
[1764615417934,0.0012135,85170.0,85169.0,0.74979261]
[1764615418066,0.0012135,85170.0,85169.0,0.75279261]
[1764615418269,0.0012135,85170.0,85169.0,0.74808671]
[1764615419938,0.0012135,85170.0,85169.0,0.89478621]
[1764615421706,1e-08,85170.0,85169.0,0.89478621]
[1764615422305,0.0004,85180.0,85179.0,0.63173331]
[1764615422654,0.00078856,85180.0,85179.0,0.85596409]
[1764615422858,0.00111388,85180.0,85179.0,0.85596409]
[1764615423649,0.23472254,85207.0,85201.0,0.01118187]
[1764615423875,0.00011649,85207.0,85201.0,0.01118187]
[1764615424079,0.00011649,85207.0,85206.0,0.23472525]
[1764615424500,0.00011649,85207.0,85206.0,0.28513639]
[1764615424885,0.00011649,85207.0,85206.0,0.23472525]
[1764615425316,0.00011649,85207.0,85202.0,0.01173681]
[1764615425522,0.00011649,85207.0,85206.0,0.23472525]
[1764615426298,0.00011649,85207.0,85206.0,0.49883216]
[1764615426670,0.00011649,85207.0,85206.0,0.57276582]
[1764615426885,0.00011649,85207.0,85206.0,0.66645165]
[1764615427472,0.00011649,85207.0,85206.0,0.51975215]
[1764615427673,0.00011649,85207.0,85206.0,0.66645165]
[1764615427873,0.00011649,85207.0,85206.0,0.98945165]
[1764615428274,0.00011649,85207.0,85206.0,0.84275215]
[1764615428597,0.00011649,85207.0,85206.0,0.84575215]
[1764615428963,0.00011649,85207.0,85206.0,0.84675215]
[1764615429437,0.0004,85240.0,85206.0,0.84675215]
[1764615429438,0.0004,85240.0,85219.0,0.3086231]
[1764615429707,0.0004,85240.0,85219.0,0.53285388]
[1764615430054,0.00170058,85220.0,85219.0,0.53285388]
[1764615430495,0.00170058,85220.0,85219.0,0.50280321]
[1764615430671,0.00170058,85220.0,85219.0,0.52144321]
[1764615430974,0.00170058,85220.0,85219.0,0.53285388]
[1764615431179,0.00170058,85220.0,85219.0,0.53385388]
[1764615431378,0.00170058,85220.0,85219.0,0.53285388]
[1764615431580,0.00170058,85220.0,85219.0,0.85585388]
[1764615431781,0.01172841,85263.0,85219.0,0.85585388]
[1764615431782,0.23452982,85277.0,85247.0,0.01173061]
[1764615431991,0.23460459,85250.0,85248.0,0.04926952]
[1764615432220,0.01173006,85251.0,85242.0,0.11740741]
[1764615432427,0.0117302,85250.0,85242.0,0.11740741]
[1764615432636,0.01173061,85247.0,85242.0,0.11740741]
[1764615432834,0.24634304,85247.0,85242.0,0.11740741]
[1764615433049,0.01172979,85253.0,85244.0,0.11740741]
[1764615433252,0.00011643,85247.0,85246.0,0.23461511]
[1764615433954,0.00011643,85247.0,85246.0,0.22161511]
[1764615435257,0.00011643,85247.0,85244.0,0.11740741]
[1764615435457,0.00011643,85247.0,85245.0,0.23461758]
[1764615436221,0.00011643,85247.0,85245.0,0.23461758]
[1764615436785,0.00011643,85247.0,85246.0,0.02732427]
[1764615437132,0.00011643,85247.0,85245.0,0.25321758]
[1764615437351,0.00011643,85247.0,85246.0,0.23461511]
[1764615437553,0.00011643,85247.0,85244.0,0.11740741]
[1764615437716,0.00099383,85247.0,85244.0,0.01173103]
[1764615437918,0.00011643,85247.0,85244.0,0.01173103]
[1764615438119,0.00011643,85247.0,85243.0,0.01173116]
[1764615438382,0.00011643,85247.0,85244.0,0.01173103]
[1764615438784,0.00011643,85247.0,85244.0,0.24635118]
[1764615439078,0.00011643,85247.0,85244.0,0.01173103]
[1764615439279,0.00011643,85247.0,85245.0,0.23461762]
[1764615439484,0.00011643,85247.0,85242.0,0.0186]
[1764615439485,0.01184704,85247.0,85242.0,0.0186]
[1764615439696,0.00011643,85247.0,85242.0,0.0186]
[1764615439955,0.01173185,85238.0,85234.0,0.0186]
[1764615440119,0.23461627,85246.0,85224.0,0.01173378]
[1764615440120,0.01173254,85233.0,85224.0,0.2464067]
[1764615440298,0.01173254,85233.0,85223.0,0.23467803]
[1764615440299,0.2346564,85231.0,85223.0,0.23467816]
[1764615440502,0.0117324,85234.0,85226.0,0.0117335]
[1764615440769,0.01173282,85231.0,85227.0,0.06405671]
[1764615440885,0.01173282,85231.0,85222.0,0.12914146]
[1764615440886,0.01173392,85223.0,85219.0,0.0186]
[1764615441090,0.01173364,85225.0,85216.0,0.01173488]
[1764615441332,0.24640924,85225.0,85219.0,0.11740741]
[1764615441507,0.0117335,85226.0,85219.0,0.11740741]
[1764615441704,0.23467839,85224.0,85219.0,0.11740741]
[1764615441990,0.24641195,85224.0,85219.0,0.11740741]
[1764615442190,0.2346613,85230.0,85219.0,0.12914188]
[1764615442437,0.01173199,85237.0,85222.0,0.01173405]
[1764615442637,0.24635721,85243.0,85231.0,0.01173282]
[1764615442956,0.24636116,85241.0,85234.0,0.24638026]
[1764615443160,0.01173171,85239.0,85233.0,0.24638146]
[1764615443456,0.24636337,85240.0,85234.0,0.0117324]
[1764615443692,0.01173199,85237.0,85231.0,0.24638761]
[1764615443868,0.01173199,85237.0,85231.0,0.01173282]
[1764615444064,0.01173213,85236.0,85231.0,0.01173282]
[1764615444601,0.01173075,85246.0,85236.0,0.24637249]
[1764615444707,0.01173075,85246.0,85238.0,0.23463666]
[1764615444923,0.23461824,85245.0,85239.0,0.01173171]
[1764615445281,0.24645987,85247.0,85240.0,0.01173158]
[1764615445490,0.24635167,85244.0,85237.0,0.24637079]
[1764615445699,0.00011643,85247.0,85241.0,0.01173144]
[1764615445905,0.00011643,85247.0,85238.0,0.06218858]
[1764615445906,0.01173089,85245.0,85238.0,0.01173185]
[1764615446109,0.0117313,85242.0,85237.0,0.01173199]
[1764615446330,0.00011643,85247.0,85237.0,0.01173199]
[1764615446331,0.00011643,85247.0,85246.0,0.23461511]
[1764615447800,0.00011643,85247.0,85246.0,0.3157381]
[1764615448002,0.00011643,85247.0,85246.0,0.32714877]
[1764615448428,0.00011643,85247.0,85246.0,0.32914877]
[1764615448622,0.00011643,85247.0,85246.0,0.33014877]
[1764615448839,0.00011643,85247.0,85246.0,0.43706983]
[1764615449068,0.00099383,85247.0,85246.0,0.43706983]
[1764615450210,0.00099383,85247.0,85246.0,0.76006983]
[1764615450970,0.00099383,85247.0,85246.0,0.75906983]
[1764615451359,0.00099383,85247.0,85246.0,0.76506983]
[1764615451761,0.00099383,85247.0,85246.0,0.76306983]
[1764615451964,0.00099383,85247.0,85246.0,0.76506983]
[1764615452563,0.0005,85300.0,85246.0,0.53045472]
[1764615452789,0.0005,85300.0,85299.0,0.23446933]
[1764615452790,0.04238318,85300.0,85299.0,0.23446933]
[1764615452992,0.00061636,85300.0,85299.0,0.31563232]
[1764615453217,0.00061636,85300.0,85299.0,0.32704299]
[1764615454145,0.00061636,85300.0,85299.0,0.88093297]
[1764615454535,0.00061636,85300.0,85299.0,0.88393297]
[1764615454737,0.00061636,85300.0,85299.0,0.9476755]
[1764615454943,0.0004,85330.0,85299.0,0.9476755]
[1764615454944,0.0004,85330.0,85329.0,0.29690989]
[1764615455176,0.00051629,85330.0,85329.0,0.31554989]
[1764615455380,0.00051629,85330.0,85329.0,0.32696056]
[1764615455576,0.00051629,85330.0,85329.0,0.61990989]
[1764615455781,0.00051629,85330.0,85329.0,0.64996056]
[1764615455978,0.00051629,85330.0,85329.0,0.63854989]
[1764615456200,0.00051629,85330.0,85329.0,0.64996056]
[1764615456815,0.0002,85340.0,85339.0,0.55735943]
[1764615457015,0.0002,85340.0,85339.0,0.63129309]
[1764615457217,0.01171193,85383.0,85354.0,0.23431825]
[1764615457416,0.2459499,85384.0,85354.0,0.30825191]
[1764615457708,0.01171152,85386.0,85354.0,0.29684124]
[1764615457909,0.01171275,85377.0,85352.0,0.24603798]
[1764615458093,0.01171344,85372.0,85352.0,0.24603798]
[1764615458295,0.01171385,85369.0,85352.0,0.24603798]
[1764615458491,0.01171454,85364.0,85354.0,0.001]
[1764615459209,0.24602704,85357.0,85354.0,0.001]
[1764615459379,0.23435558,85355.0,85354.0,0.001]
[1764615459581,4.008e-05,85355.0,85354.0,0.001]
[1764615459777,4.008e-05,85355.0,85354.0,0.003]
[1764615459935,4.008e-05,85355.0,85343.0,0.01171742]
[1764615460135,0.01171632,85351.0,85343.0,0.0386923]
[1764615460338,0.01171646,85350.0,85341.0,0.11740741]
[1764615460528,0.01171687,85347.0,85341.0,0.11740741]
[1764615460726,0.01171714,85345.0,85330.0,0.0117192]
[1764615460923,0.01171701,85346.0,85335.0,0.01171852]
[1764615461188,0.01171701,85346.0,85331.0,0.35178878]
[1764615461189,0.23429905,85361.0,85344.0,0.12912469]
[1764615461390,0.01171152,85386.0,85354.0,0.29684124]
[1764615461599,0.01171152,85386.0,85354.0,0.32689191]
[1764615461790,0.24593482,85389.0,85354.0,0.32689191]
[1764615461791,0.01171111,85389.0,85354.0,0.32689191]
[1764615462034,0.0004,85390.0,85354.0,0.32689191]
[1764615462241,0.0004,85390.0,85354.0,0.64989191]
[1764615463114,0.0004,85390.0,85388.0,0.23422278]
[1764615463320,0.00078779,85390.0,85373.0,0.0117133]
[1764615463525,0.00078779,85390.0,85378.0,0.24596292]
[1764615463746,0.00078779,85390.0,85380.0,0.23424415]
[1764615463949,0.00078779,85390.0,85381.0,0.0117122]
[1764615464103,0.01249876,85390.0,85380.0,0.01171234]
[1764615464307,0.01249876,85390.0,85381.0,0.0117122]
[1764615464308,0.00078779,85390.0,85381.0,0.0117122]
[1764615464505,0.00078779,85390.0,85385.0,0.01171165]
[1764615464736,0.00078779,85390.0,85383.0,0.24594839]
[1764615464908,0.00078779,85390.0,85384.0,0.01171179]
[1764615465136,0.00078779,85390.0,85384.0,0.24594528]
[1764615465317,0.00078779,85390.0,85384.0,0.01171179]
[1764615465517,0.01249876,85390.0,85383.0,0.01171193]
[1764615465722,0.01249876,85390.0,85379.0,0.01171248]
[1764615465930,0.01249876,85390.0,85373.0,0.0117133]
[1764615465931,0.01171193,85383.0,85373.0,0.0117133]
[1764615466183,0.01171179,85384.0,85373.0,0.0117133]
[1764615466399,0.01171152,85386.0,85378.0,0.01171261]
[1764615466585,0.01171138,85387.0,85375.0,0.01171303]
[1764615466795,0.01249876,85390.0,85360.0,0.60443628]
[1764615466796,0.01171275,85377.0,85364.0,0.01171454]
[1764615467004,0.01171275,85377.0,85361.0,0.23429762]
[1764615467005,0.01171289,85376.0,85373.0,0.001]
[1764615467205,0.01171179,85384.0,85373.0,0.001]
[1764615467401,0.01171234,85380.0,85370.0,0.01171371]
[1764615467602,0.01171207,85382.0,85372.0,0.01171344]
[1764615467852,0.00078779,85390.0,85389.0,0.2342222]
[1764615468046,0.00078779,85390.0,85389.0,0.31538519]
[1764615468255,0.00078779,85390.0,85389.0,0.63838519]
[1764615468403,0.00078779,85390.0,85389.0,0.64979586]
[1764615470242,0.00078779,85390.0,85389.0,0.65579586]
[1764615470438,0.00078779,85390.0,85389.0,0.72208138]
[1764615470640,0.00542628,85390.0,85389.0,0.72108138]
[1764615470840,0.00542628,85390.0,85389.0,0.72508138]
[1764615471199,0.00542628,85390.0,85389.0,0.72608138]
[1764615472082,0.00542628,85390.0,85389.0,0.72508138]
[1764615472309,0.00542628,85390.0,85389.0,0.72108138]
[1764615472510,0.00542628,85390.0,85389.0,0.72208138]
[1764615472725,0.00542628,85390.0,85389.0,0.72608138]
[1764615472914,0.00542628,85390.0,85389.0,0.72108138]
[1764615473339,0.00542628,85390.0,85389.0,0.72608138]
[1764615473929,0.00542628,85390.0,85389.0,0.72208138]
[1764615474128,0.00542628,85390.0,85389.0,0.72108138]
[1764615474498,0.00542628,85390.0,85389.0,0.72508138]
[1764615475448,0.00542628,85390.0,85389.0,0.72608138]
[1764615475646,0.00542628,85390.0,85389.0,0.72208138]
[1764615475852,0.00542628,85390.0,85389.0,0.65379586]
[1764615476028,0.00542628,85390.0,85389.0,0.59127287]
[1764615476390,0.00542628,85390.0,85389.0,0.59227287]
[1764615476739,0.00542628,85390.0,85389.0,0.58827287]
[1764615476944,0.00542628,85390.0,85389.0,0.65479586]
[1764615477349,0.00542628,85390.0,85389.0,0.74033736]
[1764615477556,0.00542628,85390.0,85389.0,0.72169736]
[1764615477849,0.00542628,85390.0,85389.0,0.74033736]
[1764615478634,0.00542628,85390.0,85389.0,0.73733736]
[1764615478838,0.0001,85415.0,85414.0,0.56856432]
[1764615479076,0.00021633,85415.0,85414.0,0.67670838]
[1764615479589,0.01169946,85474.0,85418.0,0.55714268]
[1764615479797,0.01170014,85469.0,85451.0,0.24575447]
[1764615480004,0.01170014,85469.0,85460.0,0.01170138]
[1764615480005,0.00011624,85469.0,85460.0,0.01170138]
[1764615480211,0.23400745,85468.0,85458.0,0.01170165]
[1764615480416,0.01181638,85469.0,85467.0,0.2340066]
[1764615480417,0.00011624,85469.0,85467.0,0.2340066]
[1764615481026,0.00011624,85469.0,85468.0,0.16654904]
[1764615481299,0.00011624,85469.0,85460.0,0.01170138]
[1764615481300,0.01170316,85447.0,85432.0,0.01170521]
[1764615481527,0.01170288,85449.0,85422.0,0.01170658]
[1764615481528,0.01170343,85445.0,85422.0,0.01170658]
[1764615481713,0.323,85467.0,85428.0,0.01170576]
[1764615481714,0.23407783,85442.0,85428.0,0.01170576]
[1764615481922,0.01170398,85441.0,85428.0,0.24581951]
[1764615482047,0.01170329,85446.0,85423.0,0.04326513]
[1764615482048,0.0117048,85435.0,85423.0,0.02458513]
[1764615482246,0.0117048,85435.0,85422.0,0.12169912]
[1764615482247,0.01170535,85431.0,85422.0,0.12169912]
[1764615482513,0.01170535,85431.0,85422.0,0.10999254]
[1764615482852,0.01170535,85431.0,85410.0,0.60443628]
[1764615482853,0.01170672,85421.0,85408.0,0.01868]
[1764615483017,0.23414599,85417.0,85408.0,0.00011633]
[1764615483220,0.0117074,85416.0,85408.0,0.00011633]
[1764615483422,0.24585695,85416.0,85408.0,0.00011633]
[1764615483626,0.01170768,85414.0,85408.0,0.00011633]
[1764615483824,0.24586304,85414.0,85408.0,0.00011633]
[1764615484004,0.01170686,85420.0,85412.0,0.01170795]
[1764615484226,0.60443628,85440.0,85408.0,0.00011633]
[1764615484227,0.0117074,85416.0,85408.0,0.00011633]
[1764615484531,0.23416705,85410.0,85408.0,0.00011633]
[1764615484706,0.01170781,85413.0,85408.0,0.00011633]
[1764615484909,0.01170809,85411.0,85408.0,0.00111633]
[1764615485173,0.23416735,85409.0,85408.0,0.00111633]
[1764615485488,0.23416735,85409.0,85408.0,0.00011633]
[1764615485489,0.28451288,85409.0,85408.0,0.00011633]
[1764615485644,0.23416735,85409.0,85408.0,0.00011633]
[1764615486051,0.01170768,85414.0,85408.0,0.00011633]
[1764615486249,0.23416703,85410.0,85408.0,0.00011633]
[1764615486654,0.24587231,85411.0,85408.0,0.00011633]
[1764615486655,0.01170809,85411.0,85408.0,0.00011633]
[1764615486857,0.23416537,85410.0,85408.0,0.00011633]
[1764615488062,0.323,85409.0,85408.0,0.00011633]
[1764615488856,0.2,85460.0,85447.0,0.01170316]
[1764615488974,0.2,85460.0,85444.0,0.01170357]
[1764615488975,0.01170192,85456.0,85440.0,0.01170411]
[1764615489175,0.01170275,85450.0,85436.0,0.01170466]
[1764615489375,0.24574048,85456.0,85441.0,0.24578153]
[1764615489376,0.24574826,85454.0,85441.0,0.24578153]
[1764615489582,0.01170261,85451.0,85439.0,0.24578694]
[1764615489780,0.01170261,85451.0,85444.0,0.23406917]
[1764615490036,0.24575975,85450.0,85439.0,0.01170425]
[1764615490325,0.2458737,85451.0,85439.0,0.01170425]
[1764615490559,0.24576829,85447.0,85437.0,0.01170453]
[1764615490771,0.0001162,85451.0,85443.0,0.0117037]
[1764615490970,0.0001162,85451.0,85441.0,0.01170398]
[1764615491127,0.01170288,85449.0,85441.0,0.01170398]
[1764615491286,0.24587353,85451.0,85442.0,0.01170384]
[1764615491487,0.24587353,85451.0,85440.0,0.23407988]
[1764615491488,0.01170316,85447.0,85440.0,0.24578641]
[1764615491736,0.01170357,85444.0,85434.0,0.01170494]
[1764615491946,0.06320718,85447.0,85428.0,0.23411453]
[1764615491947,0.01170439,85438.0,85428.0,0.01170576]
[1764615492253,0.01170425,85439.0,85428.0,0.01170576]
[1764615492455,0.01170453,85437.0,85429.0,0.01170562]
[1764615492667,0.0117048,85435.0,85419.0,0.2645655]
[1764615492841,0.01170494,85434.0,85426.0,0.01170603]
[1764615493073,0.01170494,85434.0,85425.0,0.01170617]
[1764615493281,0.01170453,85437.0,85426.0,0.01170603]
[1764615493480,0.01170466,85436.0,85426.0,0.01170603]
[1764615493686,0.01170357,85444.0,85430.0,0.01170548]
[1764615493867,0.0117037,85443.0,85437.0,0.01170453]
[1764615494229,0.01170316,85447.0,85438.0,0.01170439]
[1764615494230,0.24576727,85447.0,85438.0,0.01170439]
[1764615494390,0.01170357,85444.0,85439.0,0.01170425]
[1764615494572,0.01170343,85445.0,85435.0,0.24350282]
[1764615494775,0.01170288,85449.0,85439.0,0.24578862]
[1764615494981,0.01181881,85451.0,85436.0,0.35149867]
[1764615494982,0.0001162,85451.0,85446.0,0.23406355]
[1764615495185,0.0001162,85451.0,85449.0,0.23405607]
[1764615495815,0.00194323,85450.0,85443.0,0.24577522]
[1764615496017,0.00194323,85450.0,85425.0,0.35118238]
[1764615496018,0.01170275,85450.0,85438.0,0.01170439]
[1764615496219,0.01170562,85429.0,85414.0,0.04292324]
[1764615496548,0.0117037,85443.0,85430.0,0.01170548]
[1764615496672,0.01170411,85440.0,85430.0,0.01170548]
[1764615496877,0.01170411,85440.0,85430.0,0.2458141]
[1764615497108,0.01170425,85439.0,85433.0,0.01170507]
[1764615497303,0.01170425,85439.0,85432.0,0.01170521]
[1764615497555,0.23409429,85436.0,85427.0,0.24582299]
[1764615497782,0.01170494,85434.0,85426.0,0.24582575]
[1764615497930,0.01170521,85432.0,85421.0,0.01170672]
[1764615498177,0.01170494,85434.0,85427.0,0.0117059]
[1764615498515,0.01170494,85434.0,85429.0,0.01170562]
[1764615498707,0.01170507,85433.0,85427.0,0.24582268]
[1764615498909,0.24580109,85435.0,85428.0,0.01170576]
[1764615499068,1.35548071,85460.0,85410.0,1.01820465]
[1764615499069,0.01170521,85432.0,85416.0,0.0117074]
[1764615499267,0.01170521,85432.0,85410.0,0.06252299]
[1764615499268,0.01170617,85425.0,85413.0,0.01170781]
[1764615499468,0.01170644,85423.0,85415.0,0.23414987]
[1764615499690,0.23412828,85424.0,85414.0,0.11740741]
[1764615500032,0.0117059,85427.0,85412.0,0.23415786]
[1764615500033,0.01170686,85420.0,85412.0,0.01170795]
[1764615500225,0.24584564,85420.0,85412.0,0.01170795]
[1764615500423,0.01170686,85420.0,85414.0,0.01170768]
[1764615500590,0.01170576,85428.0,85420.0,0.01170686]
[1764615500795,0.01170617,85425.0,85418.0,0.23414268]
[1764615500994,0.24584221,85421.0,85413.0,0.24586268]
[1764615501201,0.24584221,85421.0,85414.0,0.01170768]
[1764615501404,0.01170658,85422.0,85415.0,0.01170754]
[1764615501601,0.01170658,85422.0,85417.0,0.01170727]
[1764615501787,0.01170658,85422.0,85417.0,0.24585215]
[1764615501989,0.24584189,85421.0,85416.0,0.0117074]
[1764615502199,0.01170672,85421.0,85416.0,0.0117074]
[1764615502434,0.0117074,85416.0,85411.0,0.01170809]
[1764615502748,0.23415779,85413.0,85411.0,0.00011633]
[1764615507149,0.23415779,85413.0,85388.0,0.11740741]
[1764615507150,0.01171042,85394.0,85388.0,0.11740741]
[1764615507428,0.01182651,85394.0,85388.0,0.11740741]
[1764615507620,0.01182651,85394.0,85388.0,0.12911865]
[1764615507770,0.00011609,85394.0,85389.0,0.01171111]
[1764615508224,0.00011609,85394.0,85393.0,0.23421123]
[1764615508443,0.00011609,85394.0,85391.0,0.01171083]
[1764615508642,0.00011609,85394.0,85389.0,0.01171111]
[1764615508643,0.00011609,85394.0,85390.0,0.01171097]
[1764615508811,0.00011609,85394.0,85391.0,0.01171083]
[1764615509003,0.00011609,85394.0,85389.0,0.24593225]
[1764615509004,0.00011609,85394.0,85390.0,0.01171097]
[1764615509405,0.01182651,85394.0,85389.0,0.01171111]
[1764615509886,0.01171056,85393.0,85388.0,0.11740741]
[1764615510159,0.01171056,85393.0,85388.0,0.12911865]
[1764615510317,0.01171069,85392.0,85388.0,0.11740741]
[1764615510507,0.01171069,85392.0,85387.0,0.24593877]
[1764615510508,0.01171111,85389.0,85380.0,0.23424453]
[1764615510708,0.24593176,85390.0,85382.0,0.01171207]
[1764615510907,0.24593176,85390.0,85380.0,0.24595889]
[1764615510908,0.24593655,85388.0,85380.0,0.24595889]
[1764615511107,0.01171111,85389.0,85381.0,0.0117122]
[1764615511366,0.01171124,85388.0,85383.0,0.01171193]
[1764615511565,0.23421478,85392.0,85384.0,0.01171179]
[1764615511711,0.01182651,85394.0,85384.0,0.01171179]
[1764615511712,0.24593118,85390.0,85384.0,0.24594744]
[1764615511919,0.2459334,85389.0,85382.0,0.01171207]
[1764615512115,0.2459334,85389.0,85383.0,0.01171193]
[1764615512315,0.24594295,85386.0,85381.0,0.0117122]
[1764615512519,0.01171124,85388.0,85382.0,0.01171207]
[1764615512771,0.01171138,85387.0,85377.0,0.01171275]
[1764615513086,0.24594195,85386.0,85381.0,0.0117122]
[1764615513221,0.24594195,85386.0,85380.0,0.24595909]
[1764615513222,0.01171165,85385.0,85380.0,0.24595909]
[1764615513415,0.01171165,85385.0,85381.0,0.0117122]
[1764615513620,0.24594507,85385.0,85380.0,0.24595909]
[1764615513985,0.01171165,85385.0,85380.0,0.24595909]
[1764615514158,0.01171165,85385.0,85381.0,0.0117122]
[1764615514361,0.01171179,85384.0,85379.0,0.01171248]
[1764615514558,0.01171179,85384.0,85380.0,0.01171234]
[1764615514928,0.01171097,85390.0,85379.0,0.01171248]
[1764615515126,0.01171097,85390.0,85381.0,0.23424324]
[1764615515127,0.01171138,85387.0,85381.0,0.23424324]